Cogmind - Beta 12 @@@ ROGUE MODE // 2023.03.31 @ 09:30:38 Player: Exp. Geonium Core Result: Destroyed by 8R-AWN with 8R-AWN's Boregun Performance ------------- Evolutions (1) 500 Regions Visited (5) 1000 Robots Destroyed (44) 220 Value Destroyed (928) 928 Prototype IDs (26) 520 Alien Tech Used (0) 0 Bonus (308) 308 TOTAL SCORE: 3476 Bonus ------- High Alert Combat Kills 8 Aligned with FarCom 300 Cogmind --------- Core Integrity 0/400 Matter 133/300 Energy 280/280 System Corruption 0% Temperature Cool (0) Movement Treading (160) Location -9/Exiles Parts ------- > --- POWER (1) -------- Cooled Ion Engine > --- PROPULSION (2) --- Light Treads Light Treads > --- UTILITY (4) ------ Hacking Suite > --- WEAPON (2) ------- Improved Assault Rifle Improved Assault Rifle > --- INVENTORY (5) ---- Cooled Ion Engine Firepult Grenade Launcher Peak State ------------ > --- POWER ------------ Cooled Ion Engine > --- PROPULSION ------- Light Treads Improved Treads > --- UTILITY ---------- Large Storage Unit Medium Armor Plating Medium Armor Plating Hacking Suite > --- WEAPON ----------- Heavy Assault Rifle Improved Assault Rifle > --- INVENTORY -------- Cooled Ion Engine Reinforced Deuterium Engine Fission Core Fission Core Light Treads Light Treads Light Treads Light Armor Plating Medium Armor Plating Firepult Improved Assault Rifle Improved Assault Rifle Improved Assault Rifle Grenade Launcher [Rating: 24] Favorites ----------- Power Cooled Ion Engine Engine Cooled Ion Engine Propulsion Light Treads Treads Light Treads Leg Aluminum Leg Flight Unit Improved Flight Unit Utility Medium Armor Plating Storage Large Storage Unit Processor Signal Interpreter Hackware Hacking Suite Protection Medium Armor Plating Weapon Heavy Assault Rifle Energy Gun EM Pulse Gun Ballistic Gun Heavy Assault Rifle Build | -11 -10 -10 -9 -9 -9 ------- Run | Jun Mat Min Mat Min Exi Slots Evolved 2 | . . . 2 . . Power . | . . . . . . Propulsion . | . . . . . . Utility 2 | . . . 2 . . Weapon . | . . . . . . Parts Attached 31 | . 9 1 13 . 8 Power 3 | . . 1 2 . . Engine 3 | . . 1 2 . . Core . | . . . . . . Reactor . | . . . . . . Propulsion 10 | . 2 . 5 . 3 Treads 9 | . 2 . 4 . 3 Leg . | . . . . . . Wheel . | . . . . . . Hover . | . . . . . . Flight 1 | . . . 1 . . Utility 10 | . 4 . 4 . 2 Device . | . . . . . . Storage 1 | . 1 . . . . Processor 1 | . 1 . . . . Hackware 1 | . . . 1 . . Protection 7 | . 2 . 3 . 2 Artifact . | . . . . . . Weapon 8 | . 3 . 2 . 3 Energy Gun . | . . . . . . Energy Cannon . | . . . . . . Ballistic Gun 8 | . 3 . 2 . 3 Ballistic Cannon . | . . . . . . Launcher . | . . . . . . Special Weapon . | . . . . . . Impact Weapon . | . . . . . . Slashing Weapon . | . . . . . . Piercing Weapon . | . . . . . . Special Melee Weapon . | . . . . . . Unidentified Prototypes 3 | . . . 3 . . Parts Lost 13 | . 1 1 1 . 10 Power 1 | . . 1 . . . Propulsion 3 | . . . . . 3 Utility 5 | . . . 1 . 4 Weapon 4 | . 1 . . . 3 Highest Loss Streak 9 | . 1 1 1 . 9 To Critical Strikes 5 | . . . . . 5 Average Slot Usage (%) 96 | . 91 99 98 100 97 Engine 11 | . 14 13 11 11 11 Treads 21 | . 16 28 21 22 21 Leg 2 | . 11 . . . . Storage 11 | . 14 14 11 11 10 Hackware 7 | . . . 10 11 11 Protection 16 | . 6 14 21 22 19 Ballistic Gun 23 | . 25 28 22 22 22 Naked Turns . | . . . . . . Heaviest Build 48 | 14 38 38 48 48 48 Greatest Support 43 | 20 40 40 43 43 43 Greatest Overweight (x) 2 | . 1 . 2 1 1 Average Overweight (x) . | . . . . 1 . Largest Inventory Capacity 15 | . 15 15 15 15 15 Average Capacity 13 | . 9 15 15 15 14 Most Carried 15 | . 10 12 15 15 15 Average Carried 11 | . 7 11 13 14 11 Final Capacity 15 | 8 15 15 15 15 5 Final Carried 15 | 6 10 12 15 15 4 Class Distribution -------------------- 100% | Mutant Dominant Class ---------------- Mutant | -10/Materials Mutant | -10/Mines Mutant | -9/Materials Mutant | -9/Mines Mutant | -9/Exiles Resources | -11 -10 -10 -9 -9 -9 ----------- Run | Jun Mat Min Mat Min Exi Matter Collected 1143 | 200 250 89 321 83 200 Remotely . | . . . . . . Salvage Created 1891 | . 585 99 1014 139 54 Parts 111 | . 39 4 59 9 . Haulers Intercepted 5 | . 2 . 3 . . Recyclers Shooed 4 | . . . 4 . . Parts Field Recycled . | . . . . . . Retrieved Matter . | . . . . . . Parts Self-Destructed . | . . . . . . Prevented . | . . . . . . Kills | -11 -10 -10 -9 -9 -9 ------- Run | Jun Mat Min Mat Min Exi Combat Hostiles Destroyed 35 | . 11 2 15 3 4 Guns 34 | . 11 2 15 3 3 AOE 1 | . . . . . 1 Classes Destroyed 9 | . 5 . 2 1 1 Hauler 5 | . 2 . 3 . . Recycler 6 | . 1 . 5 . . Operator 1 | . . . 1 . . Watcher 1 | . 1 . . . . Swarmer 11 | . 5 . 6 . . Grunt 17 | . 6 2 7 2 . Brawler 1 | . . . . 1 . Sentry 2 | . . . 2 . . Assembled 4 | . . . . . 4 Best Kill Streak 9 | . 6 2 9 3 4 Combat Bots Only 6 | . 4 2 6 3 4 Max Kills in Single Turn 2 | . 2 1 2 1 1 Gunslinging 1 | . . . 1 . . Exploded 1 | . . . . . 1 Melee . | . . . . . . Uniques/NPCs Destroyed . | . . . . . . Combat | -11 -10 -10 -9 -9 -9 -------- Run | Jun Mat Min Mat Min Exi Damage Taken 2915 | . 470 125 466 34 1820 Core 511 | . 78 25 53 . 355 Absorbed by Shields . | . . . . . . Core Remaining (%) 79 | 100 . 58 . . . Volleys Fired 155 | . 45 8 41 4 57 Largest 2 | . 2 2 2 2 2 Hottest 60 | . 60 46 46 46 46 Shots Fired 304 | . 85 16 82 8 113 Gun 304 | . 85 16 82 8 113 Cannon . | . . . . . . Launcher . | . . . . . . Special . | . . . . . . Kinetic 288 | . 69 16 82 8 113 Thermal . | . . . . . . Explosive . | . . . . . . Electromagnetic 16 | . 16 . . . . Robot Hit Streak 44 | . 12 8 18 4 44 Robot Miss Streak 6 | . 6 2 3 1 2 Penetration Max . | . . . . . . Secondary Targets 5 | . 2 . 2 . 1 Max Gunslinging Chain 1 | . 1 . 1 . 1 Shots Hit Robots 209 | . 44 12 56 5 92 Core Hits 70 | . 21 5 30 4 10 Critical Kills . | . . . . . . Critical Parts Destroyed . | . . . . . . Critical Strikes 1 | . 1 . . . . Corrupt 1 | . 1 . . . . Melee Attacks . | . . . . . . Impact . | . . . . . . Slashing . | . . . . . . Piercing . | . . . . . . Sneak Attacks . | . . . . . . Combat Hostiles . | . . . . . . Follow-up Attacks . | . . . . . . Damage Inflicted 3199 | . 637 178 899 81 1404 Guns 3189 | . 637 171 899 81 1401 Cannons . | . . . . . . Explosions . | . . . . . . Melee . | . . . . . . Ramming 10 | . . 7 . . 3 Kinetic 3084 | . 532 171 899 81 1401 Thermal . | . . . . . . Explosive . | . . . . . . Electromagnetic 105 | . 105 . . . . Impact . | . . . . . . Slashing . | . . . . . . Piercing . | . . . . . . Highest Corruption 2 | . 2 2 . . . Average Corruption 2 | . 2 2 . . . Corruption Purged . | . . . . . . Corruption Blocked . | . . . . . . Effects 6 | . 3 3 . . . Message Errors 2 | . 1 1 . . . Matter Fused 2 | . 1 1 . . . Data Loss (minor) 1 | . . 1 . . . Data Loss (major) 1 | . 1 . . . . Overload Shots . | . . . . . . Overflow Damage . | . . . . . . Projectiles . | . . . . . . Explosions . | . . . . . . Melee . | . . . . . . Knockbacks . | . . . . . . Impact . | . . . . . . Kinetic . | . . . . . . Secondary . | . . . . . . Self-Inflicted Damage . | . . . . . . Shots . | . . . . . . Rammed 2 | . . 1 . . 1 Targets Rammed 2 | . . 1 . . 1 Kicked . | . . . . . . Crushed . | . . . . . . Highest Temperature 78 | . 78 19 12 2 16 Average Temperature 16 | . 29 12 4 2 9 Received Heat Transfer 495 | . 174 69 174 18 60 Siege Activations . | . . . . . . Robots Corrupted . | . . . . . . Combat Hostiles . | . . . . . . Parts Fried . | . . . . . . Impact Corruptions . | . . . . . . Robots Melted . | . . . . . . Combat Hostiles . | . . . . . . Parts Melted . | . . . . . . Heat Transferred . | . . . . . . Parts Sabotaged . | . . . . . . Parts Stolen . | . . . . . . Parts Stripped . | . . . . . . Power Chain Reactions . | . . . . . . Missiles Intercepted . | . . . . . . Alert | -11 -10 -10 -9 -9 -9 ------- Run | Jun Mat Min Mat Min Exi Peak Influence 433 | . 247 104 433 198 . Initial 128 | . . 64 40 128 . Average 187 | . 148 91 274 170 . Maximum Alert Level 2 | . 1 . 2 . . Low Security (%) 63 | . 75 100 18 100 . Level 1 30 | . 24 . 63 . . Level 2 6 | . . . 18 . . Level 3 . | . . . . . . Level 4 . | . . . . . . Level 5 . | . . . . . . High Security . | . . . . . . Max Security . | . . . . . . Squads Dispatched 2 | . 1 . 1 . . Investigation 1 | . . . 1 . . Extermination . | . . . . . . Reinforcement 1 | . 1 . . . . Assault . | . . . . . . Garrison . | . . . . . . Intercept . | . . . . . . Searches Triggered . | . . . . . . Construction Impeded . | . . . . . . Haulers Reinforced . | . . . . . . Active Scanning Responses . | . . . . . . Cargo Convoy Interrupts . | . . . . . . Stealth | -11 -10 -10 -9 -9 -9 --------- Run | Jun Mat Min Mat Min Exi Distress Signals 4 | . 3 . 1 . . Communications Jammed . | . . . . . . Distress Signals . | . . . . . . Times Spotted 52 | . 22 2 18 3 7 Peak Tracking Total 10 | . 6 2 7 3 10 Tactical Retreats 4 | . 2 . 1 . 1 Traps | -11 -10 -10 -9 -9 -9 ------- Run | Jun Mat Min Mat Min Exi Traps Triggered 1 | . 1 . . . . Indirectly . | . . . . . . Trap Hack Attempts . | . . . . . . Triggered . | . . . . . . Disarmed . | . . . . . . Reprogrammed . | . . . . . . Reused . | . . . . . . Traps Extracted . | . . . . . . Installed . | . . . . . . Triggered . | . . . . . . Exploded 3 | . . . . . 3 Machines | -11 -10 -10 -9 -9 -9 ---------- Run | Jun Mat Min Mat Min Exi Machines Disabled 3 | . . . 1 . 2 Max in Single Turn 1 | . . . 1 . 1 Machines Repaired . | . . . . . . Machines Sabotaged . | . . . . . . Overloaded Fab Kills . | . . . . . . Hacking | -11 -10 -10 -9 -9 -9 --------- Run | Jun Mat Min Mat Min Exi Machines Accessed 8 | . 3 . 3 . 2 Terminals 6 | . 3 . 3 . . Fabricators . | . . . . . . Repair Stations . | . . . . . . Recycling Units . | . . . . . . Scanalyzers . | . . . . . . Garrison Access . | . . . . . . Total Hacks 17 | . 8 . 7 . 2 Successful 7 | . . . 5 . 2 Failed 10 | . 8 . 2 . . Catastrophic 4 | . 3 . 1 . . Database Lockouts . | . . . . . . Manual 16 | . 6 . 9 . 1 Terminals 15 | . 8 . 7 . . Fabricators . | . . . . . . Repair Stations . | . . . . . . Recycling Units . | . . . . . . Scanalyzers . | . . . . . . Garrison Access . | . . . . . . Terminal Hacks 7 | . . . 5 . 2 Record 1 | . . . . . 1 Robot Analysis 4 | . . . 4 . . Branch Access Points 1 | . . . 1 . . EX-Prototype ID Bank 1 | . . . . . 1 Fabricator Hacks . | . . . . . . Repair Station Hacks . | . . . . . . Recycling Unit Hacks . | . . . . . . Scanalyzer . | . . . . . . Garrison Access Hacks . | . . . . . . Unauthorized Hacks . | . . . . . . Terminals . | . . . . . . Fabricators . | . . . . . . Repair Stations . | . . . . . . Recycling Units . | . . . . . . Scanalyzers . | . . . . . . Garrison Access . | . . . . . . Data Cores Recovered 1 | . . . 1 . . Used 1 | . . . 1 . . Hacking Detections 6 | . 3 . 3 . . Full Trace Events 2 | . 1 . 1 . . Feedback Events . | . . . . . . Feedback Blocked . | . . . . . . Robot Schematics Acquired . | . . . . . . Robots Built . | . . . . . . Authchips . | . . . . . . Time . | . . . . . . Total Robot Build Rating . | . . . . . . Part Schematics Acquired . | . . . . . . Parts Built . | . . . . . . Authchips . | . . . . . . Time . | . . . . . . Total Part Build Rating . | . . . . . . Parts Repaired . | . . . . . . Time . | . . . . . . Parts Recycled . | . . . . . . Recycled Matter . | . . . . . . Retrieved Matter . | . . . . . . Retrieved Components . | . . . . . . Parts Scanalyzed . | . . . . . . Part Schematics Acquired . | . . . . . . Parts Damaged . | . . . . . . Bothacking | -11 -10 -10 -9 -9 -9 ------------ Run | Jun Mat Min Mat Min Exi Used RIF Installer . | . . . . . . Robots Hacked . | . . . . . . Non-combat . | . . . . . . Combat . | . . . . . . Robot Hacks Applied . | . . . . . . Relay Couplers Released . | . . . . . . Fabnet Peak Effective % . | . . . . . . Robots Rewired . | . . . . . . Allies Hacked . | . . . . . . Hacks Repelled . | . . . . . . Allies | -11 -10 -10 -9 -9 -9 -------- Run | Jun Mat Min Mat Min Exi Total Allies . | . . . . . . Largest Group . | . . . . . . Highest-Rated Group . | . . . . . . Highest-Rated Ally . | . . . . . . Total Orders . | . . . . . . Ally Attacks . | . . . . . . Total Damage . | . . . . . . Kills . | . . . . . . Allies Corrupted . | . . . . . . Allies Melted . | . . . . . . Intel | -11 -10 -10 -9 -9 -9 ------- Run | Jun Mat Min Mat Min Exi Robot Analysis Total 4 | . . . 4 . . Derelict Logs Recovered 1 | . . 1 . . . Drone Launches . | . . . . . . Drone Recoveries . | . . . . . . Exploration | -11 -10 -10 -9 -9 -9 ------------- Run | Jun Mat Min Mat Min Exi Turns Passed 3195 | . 704 180 561 297 1453 Spaces Moved 1254 | 1 365 91 164 118 515 Core . | . . . . . . Treads 1096 | . 208 91 164 118 515 Legs 158 | 1 157 . . . . Wheels . | . . . . . . Hover . | . . . . . . Flight . | . . . . . . Fastest Speed 120 | 120 120 160 160 240 160 Average Speed 204 | 120 143 160 231 240 237 Slowest Speed 320 | 120 240 160 320 240 240 Overloaded Moves . | . . . . . . Propulsion Burnouts . | . . . . . . Robots Hopped . | . . . . . . Cave-ins Triggered . | . . . . . . Exploration Rate (%) 31 | 2 54 24 14 29 67 Regions Visited 5 Branch Regions 3 Pre-discovered Areas 1 | . . . . . 1 Known Exits Taken 2 | . . 1 1 . . Unknown Exits Taken 3 | 1 1 . . 1 . Scrap Searched 1 | . . . . 1 . Spaces Dug . | . . . . . . Terrain Destroyed . | . . . . . . Melee . | . . . . . . Projectile . | . . . . . . AOE . | . . . . . . Terrain Rammed . | . . . . . . Walls Destroyed . | . . . . . . Machines Disabled . | . . . . . . Actions | -11 -10 -10 -9 -9 -9 --------- Run | Jun Mat Min Mat Min Exi Total 1610 | . 466 108 271 125 640 Wait 59 | . 23 6 10 2 18 Move 1249 | . 364 90 163 117 515 Hop . | . . . . . . Pick Up 55 | . 13 2 21 1 18 Fast Attach 8 | . 2 1 4 . 1 Attach 11 | . 1 . 3 . 7 Detach 2 | . 1 . 1 . . Swap 12 | . 6 . 6 . . Drop 57 | . 11 . 22 1 23 Fire 155 | . 45 8 41 4 57 Melee . | . . . . . . Ram . | . . . . . . Kick . | . . . . . . Crush 2 | . . 1 . . 1 Escape Stasis . | . . . . . . Rewire . | . . . . . . Trap . | . . . . . . Miscellaneous . | . . . . . . Route ------- -11/Junkyard -10/Materials (discovered 2 exits: *Mat / [*Min]) -10/Mines -9/Materials (discovered 2 exits: *Min x2) -9/Mines -9/Exiles History --------- Turn | Location | Event 1 | -11/Junkyard | Discovered new exit (range 0) 1 | -11/Junkyard | Entered Materials 322 | -10/Materials | Build established: Mutant 488 | -10/Materials | Discovered new exit (range 15) 611 | -10/Materials | Identified exit to Materials 681 | -10/Materials | Discovered new exit (range 15) 705 | -10/Materials | Entered Mines 865 | -10/Mines | Discovered exit to Materials (range 12) 875 | -10/Mines | Learned Materials garrison access intel 885 | -10/Mines | Entered Materials 885 | -9/Materials | Evolved 2 slots: Utility x2 920 | -9/Materials | Identified exit to Mines 1446 | -9/Materials | Entered Mines 1598 | -9/Mines | YI-UF0 nonchalantly dropped a Grenade Launcher on the ground 1733 | -9/Mines | Deemed a non-threat by the Exiles lab entrance 1733 | -9/Mines | Discovered new exit (range 5) 1743 | -9/Mines | Entered Exiles 1801 | -9/Exiles | Met 8R-AWN 1847 | -9/Exiles | Met EX-HEX 2209 | -9/Exiles | Met EX-BIN 2235 | -9/Exiles | Aligned with FarCom system 2238 | -9/Exiles | Given EX-Vault access code 2293 | -9/Exiles | Opened EX-Vault 2310 | -9/Exiles | Found Firepult 2359 | -9/Exiles | Warned to stay clear of 0b10 Research branches 2453 | -9/Exiles | Met EX-DEC 2905 | -9/Exiles | Learned location of Zion (-7) 2955 | -9/Exiles | Attacked by the Exiles 3109 | -9/Exiles | Core integrity fell below 50% 3134 | -9/Exiles | Core integrity fell below 20% 3196 | -9/Exiles | Destroyed by 8R-AWN with 8R-AWN's Boregun Last Messages --------------- 03180_ Penetrated by HV Slug. 03180_ HV Slug penetrates Wall. 03180_ Penetrated by HV Slug. 03180_ HV Slug penetrates Wall. 03184_ Penetrated by HV Slug. 03184_ HV Slug penetrates Earth. 03184_ Penetrated by HV Slug. 03184_ HV Slug penetrates Earth. 03189_ Penetrated by HV Slug. 03189_ HV Slug penetrates Earth. 03189_ Penetrated by HV Slug. 03189_ HV Slug penetrates Earth. 03192_ Earth collapses. 03193_ Penetrated by HV Slug. 03193_ HV Slug penetrates Earth. 03193_ Penetrated by HV Slug. 03193_ HV Slug penetrates Earth. 03194_ Destroyed Prototype Protection. 03196_ HV Slug penetrates Wall. 03196_ Penetrated by HV Slug. Map ----- +----------------------------------------------------+ | ?????????????????????????????????????????????????? | | ?????????????????????????????????????????????????? | | ?????????????????????????????????????????????????? | | ?????????????????????????????????????????????????? | | ?????????????????????????????????????????????????? | | ?????????????????????????????????????????????????? | | ?????????????????????????????????????????????????? | | ?????????????????????????????????????????????????? | | ?????????????????????????????????????????????????? | | ?????????????????????????????????????????????????? | | ?????????????????????????????????????????????????? | | ?????????????????????????#???????????????????????# | | ????????????????????????? ???????????????????????" | | ????????????????????????? ??????????????????????"" | | ????????????????????????? ?????????????????????#"" | | ????????????????????????? ?????????????????????#" | | ????????????????????????? ?????????????????????#" | | ????????????????????????# #????????????????????#"" | | ????????????????????????# #?????????????????????#" | | ????????????????????????# #?????#????????????????? | | ????????????????????????# #???? #????????????????? | | ????????????????????????# #??# #?????????????????? | | ??????? ??????????????###;### #??????????????????? | | ??????? ######???????#!!! ;#???????????????????? | | ?????? #""#??????# ! #????????????????????? | | ?????? ??????# !@! #????????????????????? | | ??????" #????## g #????????????##??????? | | ??????" #####" ; ?????????? """???? | | ???????# ##" ; ##?????????" """#??? | | ????????# #"" #### #?????????" ???? | | ???????????# #???# #???????"" ???? | | ?????????????## ##???# #??????"" "#??? | | ??????????????### % #????# #????? ""???? | | ????????########" ###???# #?????" "????? | | ????????# !!""""" ##???# #????# #????? | | ????????#! "###"" """"## ??### ###?## | | ????????# != "#?## "##"##X# #"###" | | ????????# === ##??#" % % """"" | | ????????# !""""""###???#"# % "" "" | | ????????##########?????#### " " | | ??????????????????????????### | | ????????????????????????????### % | | ??????????????????????????????## | | ???????????????????????????????## | | ????????????????????????????????##" | | ?????????????????????????????????#""" | | ????????????????????????????????##" | | ????????????????????????????????#"" " | | ???????????????????????????????##""" """ | | ???????????????????????????????#""" """# | +----------------------------------------------------+ Best States ------------- Heat Dissipation 28 Energy Generation 14 Energy Capacity 280 Matter Stores 300 Matter Capacity 300 Sight Range 16 Terrain Scan Density 10 Armor Coverage 450 Evasion (%) 55 Recoil Reduction 2 Offensive Hacking 10 Item Schematics ----------------- None Robot Schematics ------------------ None Fabricated ------------ Nothing Alien Tech Used ----------------- None Achievements -------------- None Challenges ------------ None Game ------ Seed ImprovedSpreadTearclaws Manual? 0 Play Time 00:22:01 Cumulative 358.5 hours Start 2023.03.30 @ 23:57:47 End 2023.03.31 @ 09:30:38 Sessions 1 Manual Loads 0 Difficulty Rogue Special Mode None Game No. 408 Rogue 408 Adventurer 0 Explorer 0 Win Type - Total 11 Types 8/0/2/1/0/0/0/0/0 Lore% 80 Gallery% 89 Achievement% 78 Wizard Run 0 Options --------- ASCII 0 Keyboard 0 Movement Numpad Keybinds 0 Fullscreen 1 Font 18/Terminus Map View 76x50 Tactical HUD 1 Map Filters NONE Filters NONE Steam 1 RUN: 053f5d02-5a65-4388-bc9e-7dc39b136849